Cogmind - Beta 15 @@@ ROGUE MODE // 2025.09.11 @ 17:26:13 Player: TapeIsSticky Result: Destroyed by T6-JPJ(R) with Subdweller Beam Cannon Performance ------------- Evolutions (0) 0 Regions Visited (2) 400 Robots Destroyed (39) 195 Value Destroyed (978) 978 Prototype IDs (0) 0 Alien Tech Used (0) 0 Bonus (0) 0 TOTAL SCORE: 1573 Bonus ------- None Cogmind --------- Core Integrity 0/250 Matter 210/300 Energy 84/100 System Corruption 1% Temperature Cool (9) Movement Core (100) Ox1 Location -10/Subcaves Parts ------- > --- POWER (1) -------- (None) > --- PROPULSION (2) --- (None) > --- UTILITY (2) ------ (None) > --- WEAPON (2) ------- EM Shotgun Autogun > --- INVENTORY (5) ---- Light Treads Subdweller Laser Autogun Peak State ------------ > --- POWER ------------ Ion Engine > --- PROPULSION ------- Light Treads Light Treads > --- UTILITY ---------- High-capacity Storage Unit Seismic Detector > --- WEAPON ----------- Autogun Autogun > --- INVENTORY -------- Ion Engine Light Ion Engine Subdweller Power Source Light Treads Armored Wheel Armored Wheel Subdweller Monowheel Small Storage Unit Large Storage Unit Medium Matter Pod Seismic Detector Transport Network Coupler EM Shotgun EM Shotgun EM Shotgun EM Shotgun Assault Rifle Light Assault Rifle Autogun Scrap Shield Fragment [Rating: 12] Favorites ----------- Power Ion Engine Engine Ion Engine Propulsion Light Treads Treads Light Treads Wheel Wheel Utility Seismic Detector Device Seismic Detector Storage High-capacity Storage Unit Protection Scrap Shield Weapon Autogun Energy Gun EM Shotgun Ballistic Gun Autogun Build | -11 -10 -10 ------- Run | Yrd Mat Sub Slots Evolved . | . . . Power . | . . . Propulsion . | . . . Utility . | . . . Weapon . | . . . Parts Attached 24 | 8 10 6 Power 2 | 1 1 . Engine 2 | 1 1 . Core . | . . . Reactor . | . . . Propulsion 5 | 2 3 . Treads 4 | 2 2 . Leg . | . . . Wheel 1 | . 1 . Hover . | . . . Flight . | . . . Utility 7 | 3 3 1 Device 2 | 2 . . Storage 4 | 1 3 . Processor . | . . . Hackware . | . . . Protection 1 | . . 1 Artifact . | . . . Weapon 10 | 2 3 5 Energy Gun 4 | . . 4 Energy Cannon . | . . . Ballistic Gun 6 | 2 3 1 Ballistic Cannon . | . . . Launcher . | . . . Special Weapon . | . . . Impact Weapon . | . . . Slashing Weapon . | . . . Piercing Weapon . | . . . Special Melee Weapon . | . . . Unidentified Prototypes . | . . . Parts Lost 9 | . 2 7 Power 1 | . . 1 Propulsion 3 | . 1 2 Utility 2 | . . 2 Weapon 3 | . 1 2 Highest Loss Streak 6 | . 1 6 To Critical Strikes . | . . . Average Backups 12 | 1 14 13 Power 2 | . 2 1 Propulsion 2 | . 2 3 Utility 3 | . 3 2 Weapon 4 | . 5 5 Tool/Special . | . . . Unused Backups 15 | . 3 12 Power 2 | . . 2 Propulsion 5 | . 1 4 Utility 7 | . 2 5 Weapon 1 | . . 1 Tool/Special . | . . . Average Slot Usage (%) 97 | . 99 88 Engine 13 | . 14 13 Treads 27 | . 27 26 Device 12 | . 14 6 Storage 12 | . 14 7 Ballistic Gun 27 | . 28 22 Peak Build Rating 12 | 7 12 12 Average Rating 10 | 6 10 10 On Entrance 6 | . 7 12 Naked Turns . | . . . Heaviest Build 92 | 14 92 52 Greatest Support 40 | 40 40 40 Greatest Overweight (x) 9 | . 9 1 Average Overweight (x) . | . . . Largest Inventory Capacity 25 | 8 25 20 Average Capacity 14 | 7 15 13 Most Carried 20 | 3 20 20 Average Carried 13 | 1 14 13 Final Capacity 20 | 8 20 5 Final Carried 20 | 3 20 3 Class Distribution -------------------- 100% | Mutant Dominant Class ---------------- Mutant | -10/Materials Mutant | -10/Subcaves Resources | -11 -10 -10 ----------- Run | Yrd Mat Sub Matter Collected 1372 | 331 988 53 Remotely 227 | 227 . . Salvage Created 1439 | 186 1058 195 Parts 98 | 13 74 11 Haulers Intercepted 2 | . 2 . Recyclers Shooed 2 | . 2 . Parts Field Recycled . | . . . Retrieved Matter . | . . . Parts Self-Destructed 3 | . . 3 Prevented . | . . . Kills | -11 -10 -10 ------- Run | Yrd Mat Sub Combat Hostiles Destroyed 26 | . 22 4 Guns 26 | . 22 4 Classes Destroyed 9 | 2 7 . Worker 2 | . 2 . Tunneler 4 | 4 . . Hauler 2 | . 2 . Recycler 1 | 1 . . Operator 1 | . 1 . Watcher 3 | . 3 . Swarmer 3 | . 3 . Grunt 17 | . 17 . Subdweller 6 | . 2 4 Best Kill Streak 5 | 2 5 2 Combat Bots Only 5 | . 5 2 Max Kills in Single Turn 2 | 1 2 1 Gunslinging . | . . . Exploded . | . . . Melee . | . . . Uniques/NPCs Destroyed . | . . . Combat | -11 -10 -10 -------- Run | Yrd Mat Sub Hostile Shots Fired 121 | . 68 53 Missed 32 | . 20 12 Hits 89 | . 48 41 Projectile 89 | . 48 41 AOE 1 | . 1 . Damage Taken 1618 | . 612 1006 Core 275 | . 52 223 Absorbed by Shields . | . . . Regen/Repaired (Parts) 114 | . 114 . Core Remaining (%) 100 | 100 . . Volleys Fired 101 | 14 67 20 Largest 2 | 2 2 2 Hottest 90 | 40 46 90 Shots Fired 200 | 28 134 38 Gun 200 | 28 134 38 Cannon . | . . . Launcher . | . . . Special . | . . . Kinetic 189 | 28 134 27 Thermal . | . . . Explosive . | . . . Electromagnetic 11 | . . 11 Robot Hit Streak 23 | 6 16 23 Robot Miss Streak 3 | 2 3 1 Penetration Max . | . . . Secondary Targets 5 | . 3 2 Max Gunslinging Chain 1 | . 1 1 Shots Hit Robots 135 | 16 82 37 Core Hits 56 | 6 38 12 Critical Kills 2 | . 2 . Critical Parts Destroyed . | . . . Critical Strikes 2 | . 2 . Destroy 2 | . 2 . Melee Attacks . | . . . Impact . | . . . Slashing . | . . . Piercing . | . . . Sneak Attacks . | . . . Combat Hostiles . | . . . Follow-up Attacks . | . . . Damage Inflicted 1868 | 169 1300 399 Guns 1842 | 169 1274 399 Cannons . | . . . Explosions . | . . . Melee . | . . . Ramming 26 | . 26 . Kinetic 1707 | 169 1274 264 Thermal . | . . . Explosive . | . . . Electromagnetic 135 | . . 135 Impact . | . . . Slashing . | . . . Piercing . | . . . Highest Corruption 1 | . 1 1 Average Corruption 1 | . 1 1 Corruption Purged . | . . . Corruption Blocked . | . . . Effects 18 | . 16 2 Message Errors 3 | . 3 . Matter Fused 6 | . 6 . Heat Flow Errors 2 | . 2 . Energy Discharges 4 | . 2 2 Data Loss (minor) 2 | . 2 . Alerts 1 | . 1 . Overload Shots . | . . . Overflow Damage . | . . . Projectiles . | . . . Explosions . | . . . Melee . | . . . Knockbacks . | . . . Impact . | . . . Kinetic . | . . . Secondary . | . . . Self-Inflicted Damage . | . . . Shots . | . . . Rammed 12 | 1 11 . Targets Rammed 12 | 1 11 . Kicked . | . . . Crushed . | . . . Highest Temperature 169 | . 169 . Average Temperature 21 | . 21 . Received Heat Transfer 450 | . 237 213 Siege Activations . | . . . Martial Activations . | . . . Shielding Activations . | . . . Robots Disrupted . | . . . Combat Hostiles . | . . . Robots Corrupted . | . . . Combat Hostiles . | . . . Parts Fried . | . . . Impact Corruptions . | . . . Robots Melted . | . . . Combat Hostiles . | . . . Parts Melted . | . . . Heat Transferred . | . . . Parts Sabotaged . | . . . Parts Stolen . | . . . Parts Stripped . | . . . Power Chain Reactions . | . . . Alert | -11 -10 -10 ------- Run | Yrd Mat Sub Maximum Alert Level . | . . . Low Security (%) 100 | 100 100 . Level 1 . | . . . Level 2 . | . . . Level 3 . | . . . Level 4 . | . . . Level 5 . | . . . High Security . | . . . Max Security . | . . . Peak Influence 191 | 5 191 . Initial 3 | . 3 . Average 80 | 1 91 . Influence Increases 642 | 25 617 . Destroy 0b10 Robot/C 400 | . 400 . Destroy 0b10 Robot/NC 65 | 25 40 . Destroy Leader 110 | . 110 . Successful Hack 7 | . 7 . Select Force Hacks 30 | . 30 . Lose Combat Pursuer 30 | . 30 . Influence Decreases 642 | 20 593 29 Entered New Map 17 | . 2 15 Time Decay 605 | 20 571 14 Lost Part 20 | . 20 . Squads Dispatched 8 | . 8 . Investigation 5 | . 5 . Extermination . | . . . Reinforcement 3 | . 3 . Assault . | . . . Garrison . | . . . Intercept . | . . . Searches Triggered . | . . . Construction Impeded . | . . . Haulers Reinforced . | . . . Active Scanning Responses . | . . . Cargo Convoy Interrupts . | . . . Stealth | -11 -10 -10 --------- Run | Yrd Mat Sub Distress Signals 1 | . 1 . Communications Jammed . | . . . Distress Signals . | . . . Times Spotted 36 | . 31 5 Peak Tracking Total 3 | . 3 3 Tactical Retreats 2 | . 2 . Traps | -11 -10 -10 ------- Run | Yrd Mat Sub Traps Triggered 1 | . 1 . Indirectly . | . . . Trap Hack Attempts . | . . . Triggered . | . . . Disarmed . | . . . Reprogrammed . | . . . Reused . | . . . Traps Extracted . | . . . Installed . | . . . Triggered . | . . . Machines | -11 -10 -10 ---------- Run | Yrd Mat Sub Machines Disabled 1 | . 1 . Max in Single Turn 1 | . 1 . Machines Repaired . | . . . Machines Dismantled . | . . . Machines Sabotaged . | . . . Overloaded Fab Kills . | . . . Hacking | -11 -10 -10 --------- Run | Yrd Mat Sub Machines Accessed 7 | . 7 . Terminals 5 | . 5 . Fabricators . | . . . Repair Stations 1 | . 1 . Recycling Units 1 | . 1 . Scanalyzers . | . . . Garrison Access . | . . . Total Hacks 21 | . 21 . Successful 13 | . 13 . Failed 7 | . 7 . Catastrophic . | . . . Database Lockouts 1 | . 1 . Manual 16 | . 16 . Terminals 15 | . 15 . Fabricators . | . . . Repair Stations 4 | . 4 . Recycling Units 2 | . 2 . Scanalyzers . | . . . Garrison Access . | . . . Terminal Hacks 1 | . 1 . Robot Analysis 1 | . 1 . Fabricator Hacks . | . . . Repair Station Hacks 4 | . 4 . Scan Component 2 | . 2 . Repair 2 | . 2 . Recycling Unit Hacks 1 | . 1 . Retrieve Components 1 | . 1 . Scanalyzer . | . . . Garrison Access Hacks . | . . . Unauthorized Hacks 7 | . 7 . Terminals 6 | . 6 . Botnet 1 | . 1 . Skim 5 | . 5 . Fabricators . | . . . Repair Stations . | . . . Recycling Units 1 | . 1 . Tunnel 1 | . 1 . Scanalyzers . | . . . Garrison Access . | . . . Data Cores Recovered . | . . . Used . | . . . Hacking Detections 6 | . 6 . Full Trace Events 2 | . 2 . Feedback Events 1 | . 1 . Corruption 1 | . 1 . Feedback Blocked . | . . . Robot Schematics Acquired . | . . . Robots Built . | . . . Authchips . | . . . Time . | . . . Total Robot Build Rating . | . . . Part Schematics Acquired . | . . . Parts Built . | . . . Authchips . | . . . Time . | . . . Total Part Build Rating . | . . . Parts Repaired 2 | . 2 . Time 52 | . 52 . Parts Recycled . | . . . Recycled Matter . | . . . Retrieved Matter . | . . . Retrieved Components 9 | . 9 . Parts Scanalyzed . | . . . Part Schematics Acquired . | . . . Parts Damaged . | . . . Bothacking | -11 -10 -10 ------------ Run | Yrd Mat Sub Used RIF Installer . | . . . Robots Hacked . | . . . Non-combat . | . . . Combat . | . . . Robot Hacks Applied . | . . . Relay Couplers Released . | . . . Fabnet Peak Effective % . | . . . Robots Rewired . | . . . Allies Hacked . | . . . Hacks Repelled . | . . . Allies | -11 -10 -10 -------- Run | Yrd Mat Sub Total Allies . | . . . Largest Group . | . . . Highest-Rated Group . | . . . Highest-Rated Ally . | . . . Total Orders . | . . . Ally Attacks . | . . . Total Damage . | . . . Kills . | . . . Allies Corrupted . | . . . Allies Melted . | . . . Intel | -11 -10 -10 ------- Run | Yrd Mat Sub Active Infowar (turns) 2495 | 170 2102 223 Seismic 2495 | 170 2102 223 Robot Analysis Total 1 | . 1 . Derelict Logs Recovered . | . . . Drone Launches . | . . . Drone Recoveries . | . . . Exploration | -11 -10 -10 ------------- Run | Yrd Mat Sub Turns Passed 2843 | 277 2102 464 Spaces Moved 1212 | 118 899 195 Core 9 | 3 . 6 Treads 1202 | 115 898 189 Legs . | . . . Wheels 1 | . 1 . Hover . | . . . Flight . | . . . Fastest Speed 50 | 50 160 50 Average Speed 193 | 157 197 195 Slowest Speed 240 | 160 240 240 Overloaded Moves . | . . . Propulsion Burnouts . | . . . Robots Hopped . | . . . Potential Cave-ins . | . . . Cave-ins Triggered . | . . . Exploration Rate (%) 40 | 7 99 14 Regions Visited 2 Branch Regions 1 Pre-discovered Areas 1 | . 1 . Known Exits Taken . | . . . Unknown Exits Taken 2 | 1 1 . Scrap Searched . | . . . Spaces Dug . | . . . Terrain Destroyed . | . . . Melee . | . . . Projectile . | . . . AOE . | . . . Terrain Rammed . | . . . Walls Destroyed . | . . . Machines Disabled . | . . . Actions | -11 -10 -10 --------- Run | Yrd Mat Sub Total 1540 | 180 1114 246 Wait 143 | 36 93 14 Move 1210 | 117 898 195 Hop . | . . . Pick Up 29 | 3 23 3 Fast Attach 11 | 8 2 1 Attach 4 | . 2 2 Detach . | . . . Swap 13 | . 9 4 Drop 14 | 1 9 4 Fire 101 | 14 67 20 Melee . | . . . Ram . | . . . Kick . | . . . Crush 12 | 1 11 . Escape Stasis . | . . . Rewire . | . . . Trap . | . . . Miscellaneous 3 | . . 3 Route ------- -11/Scrapyard -10/Materials (discovered 5 exits: [*Mat x3] / [*Min] / [*Sub]) -10/Subcaves History --------- Turn | Location | Event 6 | -11/Scrapyard | Discovered new exit (range 15) 278 | -11/Scrapyard | Entered Materials 336 | -10/Materials | Build established: Mutant 541 | -10/Materials | Discovered new exit (range 13) 588 | -10/Materials | Repaired Lgt. Treads 616 | -10/Materials | Repaired Lgt. Treads 778 | -10/Materials | Derelicts attacked the area 949 | -10/Materials | Discovered new exit (range 16) 1193 | -10/Materials | Discovered new exit (range 16) 1208 | -10/Materials | Discovered new exit (range 8) 1425 | -10/Materials | Central database locked down 1691 | -10/Materials | Discovered new exit (range 9) 2380 | -10/Materials | Entered Subcaves 2694 | -10/Subcaves | A swath of the cavern ceiling suddenly collapsed 2792 | -10/Subcaves | A Subdweller sparked back to life 2792 | -10/Subcaves | A Subdweller sparked back to life 2792 | -10/Subcaves | A Subdweller sparked back to life 2814 | -10/Subcaves | Core integrity fell below 50% 2820 | -10/Subcaves | Core integrity fell below 20% 2844 | -10/Subcaves | Destroyed by T6-JPJ(R) with Subdweller Beam Cannon Last Messages --------------- 02775_ System corrupted: Energy discharge (-92). 02792_ 7N-XVA(R) creaks and sparks as it begins to move. 02792_ T6-JPJ(R) creaks and sparks as it begins to move. 02792_ PO-9PX(R) creaks and sparks as it begins to move. 02798_ Scrap Shield Fragment affixed to Scrap Shield (+34). 02806_ 7N-XVA(R) destroyed. 02808_ Scrap Shield destroyed. 02813_ Lgt. Treads destroyed. 02817_ Ion Engine destroyed. 02820_ Autogun destroyed. 02821_ Lgt. Treads destroyed. 02824_ PO-9PX(R) affixes Scrap Shield Fragment to Scrap Shield. 02826_ PO-9PX(R) destroyed. 02826_ Switching to secondary target: T6-JPJ(R). 02827_ EM Shotgun destroyed. Map ----- +----------------------------------------------------+ | ?????????????????????????????????????????????????? | | ?????????????????????????????????????????????????? | | ?????????????????????????????????????????????????? | | ?????????????????????????????????????????????????? | | ?????????????????????????????????????????????????? | | ?????????????????????????????????????????????????? | | ?????????????????????????? ??????????????????????? | | ????????????????????????? ??????????????????????? | | ???????????????????? " " ??????????????????????? | | ????????????????????? " ????????????????????? | | ????????????????????? ????????????????????? | | ????????????????????? ????????????????????? | | ?????????????????????? ????????????????????? | | ??????????????????????? ????????????????????? | | ???????????????????????? ????????????????????? | | ????????????????????????# #????????????????????? | | ??????????????????????### ###??????????????????? | | ??????????????????????? " ##?????????????????? | | ????????????????????????#!*" ####??????????????? | | ????????????????????????#!& ##?????????????? | | ????????????????????????#%%= " #?????????????? | | ????????????????????????#&"[ "### ##?????????????? | | ????????????????????????## #??????????????????? | | ?????????????????????????## ##??????????????????? | | ????????????????????####### ##??????????????????? | | ??????????????????### @R #??????????????????? | | ??????????????????# #??????????????????? | | ??????????????????## #??????????????????? | | ???????????????????# ##??????????????????? | | ???????????????????## ####???????????????????? | | ????????????????????# ###????????????????????? | | ????????????????????# #????????????????????? | | ????????????????????### #????????????????????? | | ?????????????????????# #####??????????????????? | | ?????????????????????## ## #??????????????????? | | ???????????????????#### ## #??????????????????? | | ???????????????????# ## ####??????########?? | | ???????????????????# ##?????# ##? | | ???????????????????## ##???## #? | | ????????????????????# ##?## #? | | ????????????????????## ### ##### | | ?????????????????????# ## ##?# | | ?????????????????????## ####??# | | ??????????????????????## ### ###????## | | ???????????????????????# #####?# ####### | | ????????????????????? ##?????## | | ????????????????????# # #???????## | | ????????????????????#?# #???????# # ### # | | ?????????????????????# ???????## ###?#"#"" | | ???????????????????? ???????# ???#"" #" " | +----------------------------------------------------+ Best States ------------- Heat Dissipation 25 Energy Generation 10 Energy Capacity 250 Matter Stores 300 Matter Capacity 300 Sight Range 16 Terrain Scan Density 10 Armor Coverage 800 Evasion (%) 40 Recoil Reduction 2 Item Schematics ----------------- None Robot Schematics ------------------ None Fabricated ------------ Nothing Repaired ---------- Lgt. Treads | 44% | -10/Materials Lgt. Treads | 74% | -10/Materials Alien Tech Used ----------------- None Achievements -------------- None Challenges ------------ None Game ------ Seed ArmoredContainmentEdition Manual? 0 Play Time 00:15:05 Cumulative 195.5 hours Start 2025.09.11 @ 12:50:05 End 2025.09.11 @ 17:26:13 Sessions 3 Manual Loads 0 Difficulty Rogue Special Mode None Game No. 108 Rogue 108 Adventurer 0 Explorer 0 Win Type - Total 22 Types 10/1/7/1/0/1/1/1/0/0 Lore% 73 Gallery% 65 Achievement% 71 Wizard Run 0 Options --------- Layout 1 ASCII 0 Keyboard 0 Movement Arrows Keybinds 0 Fullscreen 2 Font 24/Tamsyn Map View 50x35 Zoom Use 0% Tactical HUD 1 Map Filters NONE Filters NONE Steam 1 RUN: 371fb734-b5cb-4167-945b-d05699f63bdb